bitfinex/quotes_BTCUSD_20240817
["timestamp","ask_amount","ask_price","bid_price","bid_amount"]
[1723923117856,1.66836529,59593.0,59592.0,5e-07]
[1723923118479,1.67236529,59593.0,59592.0,5e-07]
[1723923119502,1.84231487,59593.0,59592.0,5e-07]
[1723923119731,1.84233738,59593.0,59592.0,5e-07]
[1723923120603,1.72163738,59593.0,59592.0,5e-07]
[1723923120825,1.14360229,59593.0,59592.0,0.1463005]
[1723923121039,1.65248383,59593.0,59592.0,5e-07]
[1723923121276,1.90419083,59593.0,59592.0,5e-07]
[1723923121726,1.89019083,59593.0,59592.0,5e-07]
[1723923121934,1.87736383,59593.0,59592.0,5e-07]
[1723923122148,1.79086383,59593.0,59592.0,5e-07]
[1723923122378,1.60530929,59593.0,59592.0,5e-07]
[1723923122612,1.52460929,59593.0,59592.0,0.1426005]
[1723923122834,1.61830929,59593.0,59592.0,0.1426005]
[1723923123493,1.50160929,59593.0,59592.0,0.1426005]
[1723923123698,1.65269372,59593.0,59592.0,0.1426005]
[1723923123906,1.74639372,59593.0,59592.0,0.1426005]
[1723923124785,1.40098672,59593.0,59592.0,0.1426005]
[1723923124994,1.49468672,59593.0,59592.0,0.1426005]
[1723923125414,1.34360229,59593.0,59592.0,0.1426005]
[1723923126858,1.34660229,59593.0,59592.0,0.0619005]
[1723923127066,1.64765539,59593.0,59592.0,0.0619005]
[1723923127487,1.64465539,59593.0,59592.0,5e-07]
[1723923127696,1.90136239,59593.0,59592.0,5e-07]
[1723923127923,1.85467796,59593.0,59592.0,5e-07]
[1723923128118,1.92077796,59593.0,59592.0,5e-07]
[1723923128779,2.17540233,59593.0,59592.0,5e-07]
[1723923133350,2.17248496,59593.0,59592.0,5e-07]
[1723923142050,2.10638496,59593.0,59592.0,5e-07]
[1723923145824,2.2636682,59593.0,59592.0,5e-07]
[1723923150101,2.1699682,59593.0,59592.0,5e-07]
[1723923150303,2.3268682,59593.0,59592.0,5e-07]
[1723923151114,2.2988682,59593.0,59592.0,5e-07]
[1723923151552,1.619548,59586.0,59585.0,0.0009075]
[1723923151760,1.982448,59586.0,59585.0,0.0009075]
[1723923153731,1.98536606,59586.0,59585.0,0.0009075]
[1723923154271,1.99936606,59586.0,59585.0,0.0009075]
[1723923154691,2.01336606,59586.0,59585.0,0.0009075]
[1723923154851,2.1849206,59586.0,59585.0,0.0009075]
[1723923156437,2.01336606,59586.0,59585.0,0.0009075]
[1723923156657,2.010448,59586.0,59585.0,0.0009075]
[1723923157252,1.947248,59586.0,59585.0,0.0009075]
[1723923157455,1.957318,59586.0,59585.0,0.0009075]
[1723923157950,1.524882,59586.0,59585.0,0.0009075]
[1723923158177,1.594582,59586.0,59585.0,0.0621075]
[1723923158376,1.594582,59586.0,59585.0,0.1437075]
[1723923158777,1.580582,59586.0,59585.0,0.1437075]
[1723923158953,1.566582,59586.0,59585.0,0.1437075]
[1723923159157,1.567582,59586.0,59585.0,0.1437075]
[1723923159378,1.581582,59586.0,59585.0,0.1437075]
[1723923159538,1.569582,59586.0,59585.0,0.1437075]
[1723923160586,1.71069032,59586.0,59585.0,0.1437075]
[1723923160792,1.72469032,59586.0,59585.0,0.1437075]
[1723923160962,1.73869032,59586.0,59585.0,0.1437075]
[1723923161168,1.72769032,59586.0,59585.0,0.1437075]
[1723923161638,1.74069032,59586.0,59585.0,0.1437075]
[1723923161969,1.76569032,59586.0,59585.0,0.0621075]
[1723923162227,1.76569032,59586.0,59585.0,0.0009075]
[1723923162595,2.01742632,59586.0,59585.0,0.0009075]
[1723923162726,2.08471332,59586.0,59585.0,0.0009075]
[1723923162926,2.00291285,59586.0,59585.0,0.0009075]
[1723923163152,2.08471332,59586.0,59585.0,0.0009075]
[1723923163569,1.83297732,59586.0,59585.0,0.0009075]
[1723923163972,2.00291285,59586.0,59585.0,0.0009075]
[1723923164542,2.25464885,59586.0,59585.0,0.0009075]
[1723923164729,2.33394885,59586.0,59585.0,0.0009075]
[1723923164929,2.22701332,59586.0,59585.0,0.0009075]
[1723923165700,2.21401332,59586.0,59585.0,0.0009075]
[1723923166354,2.20001332,59586.0,59585.0,0.0009075]
[1723923166585,2.21401332,59586.0,59585.0,0.0009075]
[1723923167224,2.22801332,59586.0,59585.0,0.0009075]
[1723923167625,2.21401332,59586.0,59585.0,0.0009075]
[1723923168430,2.22801332,59586.0,59585.0,0.0009075]
[1723923174373,2.21401332,59586.0,59585.0,0.0009075]
[1723923174580,2.20001332,59586.0,59585.0,0.0009075]
[1723923174795,2.21401332,59586.0,59585.0,0.0009075]
[1723923175199,2.22801332,59586.0,59585.0,0.0009075]
[1723923177106,2.21401332,59586.0,59585.0,0.0009075]
[1723923177709,2.22801332,59586.0,59585.0,0.0009075]
[1723923178118,2.020905,59586.0,59585.0,0.0009075]
[1723923179072,2.02382276,59586.0,59585.0,0.0009075]
[1723923179492,2.020905,59586.0,59585.0,0.0009075]
[1723923179917,1.941605,59586.0,59585.0,0.0009075]
[1723923180332,2.083905,59586.0,59585.0,5e-07]
[1723923180944,2.25545954,59586.0,59585.0,5e-07]
[1723923181357,2.43136972,59586.0,59585.0,5e-07]
[1723923181969,2.44536972,59586.0,59585.0,5e-07]
[1723923187389,1.619806,59575.0,59574.0,0.04955683]
[1723923187592,1.88987415,59575.0,59574.0,0.04955683]
[1723923187790,1.88987415,59575.0,59571.0,0.0654]
[1723923187791,1.138041,59574.0,59571.0,0.0654]
[1723923187996,1.489828,59574.0,59571.0,0.0654]
[1723923188192,1.83143047,59574.0,59571.0,0.0654]
[1723923188489,1.85443047,59574.0,59571.0,0.0654]
[1723923188888,1.86843047,59574.0,59571.0,0.0654]
[1723923189023,1.69687593,59574.0,59571.0,0.0654]
[1723923189567,1.6968619,59574.0,59571.0,0.0654]
[1723923190315,1.7108619,59574.0,59571.0,0.0654]
[1723923190955,1.7762619,59574.0,59571.0,0.0654]
[1723923192207,1.36442897,59574.0,59571.0,0.0654]
[1723923192424,1.36042897,59574.0,59571.0,0.0654]
[1723923192832,1.33742897,59574.0,59573.0,0.1429064]
[1723923193047,1.43312897,59574.0,59573.0,0.1429064]
[1723923193383,1.43512897,59574.0,59573.0,0.1429064]
[1723923194465,1.45812897,59574.0,59573.0,0.1429064]
[1723923195312,1.62968351,59574.0,59573.0,0.1429064]
[1723923195700,1.45812897,59574.0,59573.0,0.1429064]
[1723923198637,1.45812897,59574.0,59573.0,0.0659064]
[1723923199399,1.45812897,59574.0,59573.0,0.0005064]
[1723923200013,1.70991597,59574.0,59573.0,0.0005064]
[1723923200386,1.69591597,59574.0,59573.0,0.0005064]
[1723923200544,1.86747051,59574.0,59573.0,0.0005064]
[1723923200747,1.85347051,59574.0,59573.0,0.0005064]
[1723923200943,1.86747051,59574.0,59573.0,0.0005064]
[1723923202003,1.88147051,59574.0,59573.0,0.0005064]
[1723923202417,1.86747051,59574.0,59573.0,0.0005064]
[1723923202627,2.03536444,59574.0,59573.0,0.0005064]
[1723923203032,1.8638099,59574.0,59573.0,0.0005064]
[1723923204549,1.8638099,59574.0,59573.0,0.1436064]
[1723923204550,1.8478099,59574.0,59573.0,0.1436064]
[1723923204675,1.8458099,59574.0,59573.0,0.1436064]
[1723923204987,1.8358099,59574.0,59573.0,0.1436064]
[1723923205198,1.8638099,59574.0,59573.0,0.1436064]
[1723923205443,2.03400564,59574.0,59573.0,0.0005064]
[1723923205670,2.21090564,59574.0,59573.0,0.0005064]
[1723923205869,2.03400564,59574.0,59573.0,0.0005064]
[1723923206611,1.8638099,59574.0,59573.0,0.0005064]
[1723923208880,1.6120229,59574.0,59573.0,0.0005064]
[1723923209721,1.45812897,59574.0,59573.0,0.0005064]
[1723923210123,1.45412897,59574.0,59573.0,0.0622064]
[1723923210327,1.43112897,59574.0,59573.0,0.0622064]
[1723923210847,1.43312897,59574.0,59573.0,0.0622064]
[1723923211299,1.43512897,59574.0,59573.0,0.0622064]
[1723923211478,1.45812897,59574.0,59573.0,0.0622064]
[1723923213195,1.45812897,59574.0,59573.0,0.0005064]
[1723923213601,1.45312897,59574.0,59573.0,0.0005064]
[1723923213800,1.45412897,59574.0,59573.0,0.1436064]
[1723923214035,1.444141,59574.0,59573.0,0.1436064]
[1723923215991,1.350441,59574.0,59573.0,0.1436064]
[1723923216186,1.349441,59574.0,59573.0,0.1436064]
[1723923216390,1.443141,59574.0,59573.0,0.1436064]
[1723923216615,1.444141,59574.0,59573.0,0.1436064]
[1723923217891,1.378741,59574.0,59573.0,0.1436064]
[1723923218714,1.380741,59574.0,59573.0,0.1436064]
[1723923218921,1.382741,59574.0,59573.0,0.1436064]
[1723923222739,1.378741,59574.0,59573.0,0.1436064]
[1723923225548,1.38165948,59574.0,59573.0,0.1436064]
[1723923226826,1.38365948,59574.0,59573.0,0.1436064]
[1723923226978,1.38565948,59574.0,59573.0,0.1436064]
[1723923227945,1.38565948,59574.0,59573.0,0.0622064]
[1723923231473,1.38165948,59574.0,59573.0,0.0622064]
[1723923233602,1.38365948,59574.0,59573.0,0.0622064]
[1723923234484,1.38565948,59574.0,59573.0,0.0622064]
[1723923236068,1.55721402,59574.0,59573.0,0.0622064]
[1723923237055,1.55321402,59574.0,59573.0,0.0622064]
[1723923237257,1.38165948,59574.0,59573.0,0.0622064]
[1723923237699,1.01217248,59574.0,59573.0,0.1430064]
[1723923237904,1.009254,59574.0,59573.0,0.1430064]
[1723923238597,0.995254,59574.0,59573.0,0.1430064]
[1723923238801,1.009254,59574.0,59573.0,0.1430064]
[1723923240009,0.995254,59574.0,59573.0,0.1430064]
[1723923240426,1.009254,59574.0,59573.0,0.1430064]
[1723923241558,1.03559626,59574.0,59573.0,0.1430064]
[1723923244266,1.18683903,59574.0,59573.0,0.1430064]
[1723923245211,1.03559626,59574.0,59573.0,0.1430064]
[1723923245384,1.18683793,59574.0,59573.0,0.1430064]
[1723923246063,1.18683793,59574.0,59573.0,0.0622064]
[1723923246264,1.11449626,59574.0,59573.0,0.0005064]
[1723923246469,1.13780686,59574.0,59573.0,0.0005064]
[1723923247298,1.05890686,59574.0,59573.0,0.0005064]
[1723923252871,1.03559626,59574.0,59573.0,0.1460064]
[1723923254768,1.009254,59574.0,59573.0,0.1460064]
[1723923255650,0.40568,59574.0,59573.0,0.1460064]
[1723923256008,0.153893,59574.0,59573.0,0.1460064]
[1723923256215,0.028,59574.0,59573.0,0.1460064]
[1723923256418,0.153893,59574.0,59573.0,0.1460064]
[1723923256642,0.139893,59574.0,59573.0,0.1460064]
[1723923256822,0.39168,59574.0,59573.0,0.1460064]
[1723923257256,0.125893,59574.0,59573.0,0.1460064]
[1723923258087,0.127893,59574.0,59573.0,0.1460064]
[1723923258264,0.37968,59574.0,59573.0,0.1460064]
[1723923260743,0.127893,59574.0,59573.0,0.1460064]
[1723923262830,0.37968,59574.0,59573.0,0.1460064]
[1723923263857,0.127893,59574.0,59573.0,0.1460064]
[1723923266712,0.37968,59574.0,59573.0,0.1460064]
[1723923282425,0.37968,59574.0,59573.0,0.0631064]
[1723923291478,0.708867,59574.0,59573.0,0.0005064]
[1723923292163,0.960654,59574.0,59573.0,0.0005064]
[1723923292364,0.958654,59574.0,59573.0,0.0005064]
[1723923292568,0.712867,59574.0,59573.0,0.0005064]
[1723923292721,0.715867,59574.0,59573.0,0.0005064]
[1723923294227,0.715867,59574.0,59573.0,0.0652064]
[1723923294228,0.638467,59574.0,59573.0,0.0652064]
[1723923300396,0.009,59574.0,59573.0,0.0652064]
[1723923300596,0.009,59574.0,59573.0,0.1405064]
[1723923301379,0.05940825,59574.0,59573.0,0.1405064]
[1723923302783,0.05940825,59574.0,59573.0,0.2664014]
[1723923303002,0.009,59574.0,59573.0,0.8636834]
[1723923303917,0.125881,59580.0,59576.0,0.125888]
[1723923304175,0.125881,59580.0,59577.0,0.1423]
[1723923304392,0.03,59582.0,59578.0,0.125884]
[1723923304393,0.20628525,59582.0,59578.0,0.125884]
[1723923304654,0.125879,59581.0,59577.0,0.268187]
[1723923305097,0.08040825,59582.0,59577.0,0.268187]
[1723923305098,0.125881,59580.0,59577.0,0.268187]
[1723923305320,0.128881,59580.0,59577.0,0.268187]
[1723923305547,0.128881,59580.0,59577.0,0.1423]
[1723923306956,0.128881,59580.0,59577.0,0.268187]
[1723923306957,0.003,59580.0,59577.0,0.268187]
[1723923307184,0.128881,59580.0,59577.0,0.268187]
[1723923307768,0.125881,59580.0,59577.0,0.268187]
[1723923308185,0.129881,59580.0,59577.0,0.268187]
[1723923309824,0.004,59580.0,59577.0,0.268187]
[1723923310066,0.129882,59580.0,59578.0,0.062]
[1723923310840,0.125882,59580.0,59578.0,0.062]
[1723923311204,0.129882,59580.0,59578.0,0.062]
[1723923312510,0.004,59580.0,59578.0,0.062]
[1723923313248,0.004,59580.0,59579.0,0.125883]
[1723923313469,0.004,59580.0,59579.0,0.268183]
[1723923313666,0.004,59580.0,59579.0,0.519949]
[1723923314274,0.004,59580.0,59579.0,0.268183]
[1723923315082,0.155877,59582.0,59579.0,0.268183]
[1723923315520,0.03,59582.0,59580.0,0.12588]
[1723923315723,0.03,59582.0,59579.0,0.268183]
[1723923315961,0.155878,59582.0,59579.0,0.1423]
[1723923316470,0.158878,59582.0,59579.0,0.268183]
[1723923317076,0.158878,59582.0,59577.0,0.125886]
[1723923317077,0.12588,59581.0,59577.0,0.125886]
[1723923318189,0.12588,59581.0,59576.0,0.251777]
[1723923318190,0.12588,59581.0,59578.0,0.125885]
[1723923318598,0.13088,59581.0,59578.0,0.125885]
[1723923318983,0.13288,59581.0,59578.0,0.125885]
[1723923319358,0.075,59580.0,59578.0,0.125885]
[1723923321202,0.079,59580.0,59578.0,0.125885]
[1723923323345,0.004,59580.0,59578.0,0.125885]
[1723923324397,0.004,59580.0,59578.0,0.1267925]
[1723923325472,0.458349,59579.0,59578.0,0.0009075]
[1723923325672,0.775415,59579.0,59578.0,0.0009075]
[1723923326643,0.775415,59579.0,59578.0,0.0019075]
[1723923326999,0.82577398,59579.0,59578.0,0.0019075]
[1723923327198,0.775415,59579.0,59578.0,0.0019075]
[1723923327416,1.07753998,59579.0,59578.0,0.0019075]
[1723923327762,1.029181,59579.0,59578.0,0.0019075]
[1723923328347,1.027181,59579.0,59578.0,0.0019075]
[1723923328510,1.027181,59579.0,59578.0,0.0009075]
[1723923328726,1.033181,59579.0,59578.0,0.0009075]
[1723923328924,1.036181,59579.0,59578.0,0.0009075]
[1723923338977,1.42758504,59579.0,59578.0,0.0009075]
[1723923339098,1.72858504,59579.0,59578.0,0.0009075]
[1723923339293,2.00535104,59579.0,59578.0,0.0009075]
[1723923339560,2.00735104,59579.0,59578.0,0.0009075]
[1723923339858,2.00435104,59579.0,59578.0,0.0009075]
[1723923340063,2.01135104,59579.0,59578.0,0.0009075]
[1723923340469,1.867713,59579.0,59578.0,0.0009075]
[1723923340603,1.863713,59579.0,59578.0,0.0009075]
[1723923340803,1.861713,59579.0,59578.0,0.0009075]
[1723923341005,1.877713,59579.0,59578.0,0.0009075]
[1723923341215,1.868713,59579.0,59578.0,0.0009075]
[1723923341644,1.878713,59579.0,59578.0,0.0009075]
[1723923342075,1.870713,59579.0,59578.0,0.0009075]
[1723923342274,1.858713,59579.0,59578.0,0.0009075]
[1723923342542,2.04426754,59579.0,59578.0,0.0009075]
[1723923342825,1.868713,59579.0,59578.0,0.0009075]
[1723923343169,2.03373878,59579.0,59578.0,0.0009075]
[1723923345501,1.882713,59579.0,59578.0,0.0009075]
[1723923346968,1.629947,59579.0,59578.0,0.0009075]
[1723923347202,1.630947,59579.0,59578.0,0.0009075]
[1723923349886,1.634947,59579.0,59578.0,0.0009075]
[1723923350116,1.637676,59579.0,59578.0,0.0009075]
[1723923350954,1.639676,59579.0,59578.0,0.0009075]
[1723923351601,1.637676,59579.0,59578.0,0.0009075]
[1723923361646,1.638676,59579.0,59578.0,0.0009075]
[1723923361851,1.637676,59579.0,59578.0,0.0009075]
[1723923363426,1.436676,59579.0,59578.0,0.0009075]
[1723923363567,1.267676,59579.0,59578.0,0.0009075]
[1723923363770,1.361376,59579.0,59578.0,0.0009075]
[1723923365169,1.46193351,59579.0,59578.0,0.0009075]
[1723923365371,1.36823351,59579.0,59578.0,0.0009075]
[1723923365547,1.46193351,59579.0,59578.0,0.0009075]
[1723923367332,1.361376,59579.0,59578.0,0.0009075]
[1723923368395,1.56897506,59579.0,59578.0,0.0009075]
[1723923368618,1.63237506,59579.0,59578.0,0.0009075]
[1723923368828,1.506676,59579.0,59578.0,0.0009075]
[1723923372082,1.412976,59579.0,59578.0,0.0009075]
[1723923372396,1.443276,59579.0,59578.0,0.0009075]
[1723923374701,1.261376,59579.0,59578.0,0.0009075]
[1723923374904,1.12870851,59579.0,59578.0,0.0009075]
[1723923375348,1.002881,59579.0,59578.0,0.0009075]
[1723923375542,1.12870851,59579.0,59578.0,0.0009075]
[1723923375951,1.11470851,59579.0,59578.0,0.0009075]
[1723923376152,1.20070851,59579.0,59578.0,0.0009075]
[1723923376365,1.21470851,59579.0,59578.0,0.0009075]
[1723923376899,1.25504903,59579.0,59578.0,0.0009075]
[1723923377308,1.25504903,59579.0,59578.0,0.1424075]
[1723923377504,1.12922152,59579.0,59578.0,0.1424075]
[1723923377749,1.25508719,59579.0,59578.0,0.1424075]
[1723923378385,1.12922152,59579.0,59578.0,0.1424075]
[1723923380353,1.25511813,59579.0,59578.0,0.1424075]
[1723923381448,1.12922152,59579.0,59578.0,0.1424075]
[1723923383657,1.02922152,59579.0,59578.0,0.1424075]
[1723923385384,0.93552152,59579.0,59578.0,0.1424075]
[1723923385579,1.02922152,59579.0,59578.0,0.1424075]
[1723923385960,1.02922152,59579.0,59578.0,0.0009075]
[1723923399995,1.09342152,59579.0,59578.0,0.0009075]
[1723923400784,1.02922152,59579.0,59578.0,0.0009075]
[1723923406834,1.02922152,59579.0,59578.0,0.1449075]
[1723923408443,1.02922152,59579.0,59578.0,0.14440636]
[1723923408800,1.02922152,59579.0,59578.0,0.06630636]
[1723923410430,0.68375552,59579.0,59578.0,0.06630636]
[1723923410674,0.4560634,59579.0,59578.0,0.14440636]
[1723923410882,0.4560644,59579.0,59578.0,0.14440636]
[1723923411101,0.405649,59579.0,59578.0,0.14440636]
[1723923411510,0.391649,59579.0,59578.0,0.14440636]
[1723923412140,0.4280644,59579.0,59578.0,0.14440636]
[1723923412311,0.391649,59579.0,59578.0,0.14440636]
[1723923412692,0.377649,59579.0,59578.0,0.14440636]
[1723923412895,0.629415,59579.0,59578.0,0.14440636]
[1723923413268,0.629415,59579.0,59578.0,0.14540636]
[1723923414157,0.630415,59579.0,59578.0,0.14540636]
[1723923420666,0.711415,59579.0,59578.0,0.00140636]
[1723923421114,0.630415,59579.0,59578.0,0.00140636]
[1723923427979,0.63124,59579.0,59578.0,0.00140636]
[1723923429346,0.883006,59579.0,59578.0,0.00140636]
[1723923429548,1.021206,59579.0,59578.0,0.00140636]
[1723923430393,1.272972,59579.0,59578.0,0.00140636]
[1723923430872,1.296972,59579.0,59578.0,0.00140636]
[1723923431187,1.296972,59579.0,59578.0,0.00040636]
[1723923431391,1.295972,59579.0,59578.0,0.00040636]
[1723923431745,1.313972,59579.0,59578.0,0.00040636]
[1723923431961,1.5581392,59579.0,59578.0,0.00040636]
[1723923432251,1.56424164,59579.0,59578.0,0.00040636]
[1723923432420,1.57824164,59579.0,59578.0,0.00040636]
[1723923435718,1.58024164,59579.0,59578.0,0.00040636]
[1723923436818,1.57824164,59579.0,59578.0,0.00040636]
[1723923437046,1.67194164,59579.0,59578.0,0.00040636]
[1723923437176,1.52777444,59579.0,59578.0,0.00040636]
[1723923438325,1.52977444,59579.0,59578.0,0.00040636]
[1723923438533,1.53177444,59579.0,59578.0,0.00040636]
[1723923439176,1.52777444,59579.0,59578.0,0.00040636]
[1723923440966,1.53450444,59579.0,59578.0,0.00040636]
[1723923441375,1.53650444,59579.0,59578.0,0.00040636]
[1723923441579,1.53450444,59579.0,59578.0,0.00040636]
[1723923441996,1.76675464,59579.0,59578.0,0.00040636]
[1723923442206,1.53650444,59579.0,59578.0,0.00040636]
[1723923442443,1.77365861,59579.0,59578.0,0.00040636]
[1723923443036,1.77165861,59579.0,59578.0,0.00040636]
[1723923443842,1.92269696,59579.0,59578.0,0.00040636]
[1723923444044,1.92469696,59579.0,59578.0,0.00040636]
[1723923445294,2.08153826,59579.0,59578.0,0.00040636]
[1723923445498,2.33330426,59579.0,59578.0,0.00040636]
[1723923447357,2.18226591,59579.0,59578.0,0.00040636]
[1723923450556,1.94511174,59579.0,59578.0,0.00040636]
[1723923450721,2.17679591,59579.0,59578.0,0.00040636]
[1723923454351,2.17479591,59579.0,59578.0,0.00040636]
[1723923456249,2.17679591,59579.0,59578.0,0.00040636]
[1723923458152,2.32773676,59579.0,59578.0,0.00040636]
[1723923459145,2.17679591,59579.0,59578.0,0.00040636]
[1723923460292,2.17615504,59579.0,59578.0,0.00040636]
[1723923461469,2.3459635,59579.0,59578.0,0.00040636]
[1723923462304,2.17615504,59579.0,59578.0,0.00040636]
[1723923463546,2.16215504,59579.0,59578.0,0.00040636]
[1723923464469,2.14815504,59579.0,59578.0,0.00040636]
[1723923464907,2.17615504,59579.0,59578.0,0.00040636]
[1723923465355,2.16215504,59579.0,59578.0,0.00040636]
[1723923465628,2.19015504,59579.0,59578.0,0.00040636]
[1723923468466,1.95911174,59579.0,59578.0,0.00040636]
[1723923471578,1.80427044,59579.0,59578.0,0.00040636]
[1723923475086,1.80719422,59579.0,59578.0,0.00040636]
[1723923478304,1.80427044,59579.0,59578.0,0.00040636]
[1723923484083,1.83061631,59579.0,59578.0,0.00040636]
[1723923486426,2.00771631,59579.0,59578.0,0.00040636]
[1723923486656,2.00217085,59579.0,59578.0,0.00040636]
[1723923489029,2.25393685,59579.0,59578.0,3.6e-07]
[1723923489478,2.25293685,59579.0,59578.0,3.6e-07]
[1723923489687,2.25476268,59579.0,59578.0,3.6e-07]
[1723923490054,1.96150814,59579.0,59578.0,3.6e-07]
[1723923490284,1.97790814,59579.0,59578.0,3.6e-07]
[1723923490467,1.99090814,59579.0,59578.0,3.6e-07]
[1723923490669,1.92800814,59579.0,59578.0,3.6e-07]
[1723923490871,1.93018231,59579.0,59578.0,3.6e-07]
[1723923491051,1.91618231,59579.0,59578.0,3.6e-07]
[1723923491250,1.93018231,59579.0,59578.0,3.6e-07]
[1723923491659,1.91618231,59579.0,59578.0,3.6e-07]
[1723923492060,1.93018231,59579.0,59578.0,3.6e-07]
[1723923492262,2.10173685,59579.0,59578.0,3.6e-07]
[1723923492615,2.11573685,59579.0,59578.0,3.6e-07]
[1723923498508,2.19763685,59579.0,59578.0,3.6e-07]
[1723923498710,2.20056059,59579.0,59578.0,3.6e-07]
[1723923499256,2.02500605,59579.0,59578.0,3.6e-07]
[1723923499835,2.01490361,59579.0,59578.0,3.6e-07]
[1723923500257,2.01490361,59579.0,59578.0,0.14710036]
[1723923500258,1.33284787,59579.0,59578.0,0.14710036]
[1723923500460,1.42654787,59579.0,59578.0,0.14710036]
[1723923501098,1.41254787,59579.0,59578.0,0.14710036]
[1723923501424,1.39854787,59579.0,59578.0,0.14710036]
[1723923501757,1.41254787,59579.0,59578.0,0.14710036]
[1723923510467,1.41254787,59579.0,59578.0,0.06390036]
[1723923510640,1.41254787,59579.0,59578.0,3.6e-07]
[1723923510865,1.66198196,59579.0,59578.0,3.6e-07]
[1723923511100,1.75759411,59579.0,59578.0,3.6e-07]
[1723923511764,1.75758771,59579.0,59578.0,3.6e-07]
[1723923512830,1.75958771,59579.0,59578.0,3.6e-07]
[1723923513682,1.76158771,59579.0,59578.0,3.6e-07]
[1723923514453,1.75758771,59579.0,59578.0,3.6e-07]
[1723923515271,1.67828771,59579.0,59578.0,3.6e-07]
[1723923516355,1.67827453,59579.0,59578.0,3.6e-07]
[1723923518731,1.58266238,59579.0,59578.0,3.6e-07]
[1723923520386,1.66196238,59579.0,59578.0,3.6e-07]
[1723923520755,1.66488669,59579.0,59578.0,3.6e-07]
[1723923521200,1.66888669,59579.0,59578.0,3.6e-07]
[1723923522867,1.66488669,59579.0,59578.0,3.6e-07]
[1723923523714,1.91965269,59579.0,59578.0,3.6e-07]
[1723923523871,1.92065269,59579.0,59578.0,3.6e-07]
[1723923524074,2.05112362,59579.0,59578.0,3.6e-07]
[1723923524345,2.04819931,59579.0,59578.0,3.6e-07]
[1723923525734,2.04820868,59579.0,59578.0,3.6e-07]
[1723923528232,1.8780848,59579.0,59578.0,3.6e-07]
[1723923529797,1.8800848,59579.0,59578.0,3.6e-07]
[1723923530118,1.8820848,59579.0,59578.0,3.6e-07]
[1723923532142,2.1861508,59579.0,59578.0,3.6e-07]
[1723923532395,0.005,59571.0,59570.0,8e-07]
[1723923532583,0.8277,59571.0,59570.0,8e-07]
[1723923532706,1.6831,59571.0,59570.0,8e-07]
[1723923533106,1.9349,59571.0,59570.0,8e-07]
[1723923533355,2.10645454,59571.0,59570.0,8e-07]
[1723923533547,2.12045454,59571.0,59570.0,8e-07]
[1723923533898,2.13445454,59571.0,59570.0,8e-07]
[1723923534107,2.12045454,59571.0,59570.0,8e-07]
[1723923534638,2.13445454,59571.0,59570.0,8e-07]
[1723923535446,1.364307,59560.0,59559.0,0.04913032]
[1723923535737,1.464307,59560.0,59559.0,0.04913032]
[1723923535945,0.882478,59559.0,59558.0,0.0641]
[1723923536143,1.47917837,59559.0,59558.0,0.0591]
[1723923536346,1.50217837,59559.0,59558.0,0.0591]
[1723923536596,1.350029,59559.0,59558.0,0.0591]
[1723923537168,1.50113576,59559.0,59558.0,0.0591]
[1723923537377,1.50213576,59559.0,59558.0,0.0591]
[1723923537542,1.51613576,59559.0,59558.0,0.0591]
[1723923538253,1.365029,59559.0,59558.0,0.0591]
[1723923539083,1.37504167,59559.0,59558.0,0.0591]
[1723923539505,1.38904167,59559.0,59558.0,0.0591]
[1723923539710,1.29534167,59559.0,59558.0,0.0591]
[1723923539911,1.38804167,59559.0,59558.0,0.0591]
[1723923540517,1.38904167,59559.0,59558.0,0.0591]
[1723923543073,1.38904167,59559.0,59558.0,0.0600075]
[1723923544407,1.41539091,59559.0,59558.0,0.0600075]
[1723923545020,1.41831643,59559.0,59558.0,0.0600075]
[1723923545438,1.41539091,59559.0,59558.0,0.0600075]
[1723923546051,1.41539091,59559.0,59558.0,0.0009075]
[1723923547511,1.54111523,59559.0,59558.0,0.0009075]
[1723923551608,1.54107997,59559.0,59558.0,0.0009075]
[1723923552452,1.41539091,59559.0,59558.0,0.0009075]
[1723923553879,1.59505113,59559.0,59558.0,0.0009075]
[1723923554250,1.59504146,59559.0,59558.0,0.0009075]
[1723923554455,1.5410703,59559.0,59558.0,0.0009075]
[1723923554629,1.5418953,59559.0,59558.0,0.0009075]
[1723923554832,1.6227953,59559.0,59558.0,0.0009075]
[1723923556584,1.62279067,59559.0,59558.0,0.0009075]
[1723923560075,1.85153112,59559.0,59558.0,0.0009075]
[1723923561111,1.65293112,59559.0,59558.0,0.1472075]
[1723923561320,1.74663112,59559.0,59558.0,0.1472075]
[1723923562243,1.72028188,59559.0,59558.0,0.1472075]
[1723923563829,1.72028188,59559.0,59558.0,0.0658075]
[1723923565419,1.74328188,59559.0,59558.0,0.0009075]
[1723923565578,1.74332621,59559.0,59558.0,0.0009075]
[1723923566233,1.61760712,59559.0,59558.0,0.0009075]
[1723923568025,1.38886667,59559.0,59558.0,0.0009075]
[1723923570159,1.43880761,59559.0,59558.0,0.0009075]
[1723923570382,1.38886667,59559.0,59558.0,0.0009075]
[1723923572002,1.29516667,59559.0,59558.0,0.0009075]
[1723923572229,1.38886667,59559.0,59558.0,0.0009075]
[1723923573148,1.78871767,59559.0,59558.0,0.0009075]
[1723923573994,1.79071767,59559.0,59558.0,0.0009075]
[1723923574206,1.96427221,59559.0,59558.0,0.0009075]
[1723923574401,1.96027221,59559.0,59558.0,0.0009075]
[1723923574603,1.77471767,59559.0,59558.0,0.0009075]
[1723923574779,1.78871767,59559.0,59558.0,0.0009075]
[1723923575183,1.77471767,59559.0,59558.0,0.0009075]
[1723923575584,1.78871767,59559.0,59558.0,0.0009075]
[1723923575944,1.77471767,59559.0,59558.0,0.0009075]
[1723923576153,1.95871546,59559.0,59558.0,0.0009075]
[1723923577140,1.78871767,59559.0,59558.0,0.0009075]
[1723923577292,1.96027221,59559.0,59558.0,0.0009075]
[1723923584839,1.78871767,59559.0,59558.0,0.0009075]
[1723923585043,1.71991767,59559.0,59558.0,0.0009075]
[1723923585261,1.29716667,59559.0,59558.0,0.1389075]
[1723923585614,1.38986667,59559.0,59558.0,0.1389075]
[1723923585791,1.38986667,59559.0,59558.0,0.0615075]
[1723923589076,1.29516667,59559.0,59558.0,0.0615075]
[1723923589403,1.38886667,59559.0,59558.0,0.0615075]
[1723923592279,1.38886667,59559.0,59558.0,0.0009075]
[1723923594382,1.38986667,59559.0,59558.0,0.0009075]
[1723923596459,1.38886667,59559.0,59558.0,0.0009075]
[1723923596850,1.36586667,59559.0,59558.0,0.0615075]
[1723923599432,1.36586667,59559.0,59558.0,0.0009075]
[1723923612958,1.69367334,59559.0,59558.0,0.0009075]
[1723923613808,1.52616667,59559.0,59558.0,0.0009075]
[1723923614466,2.03486867,59559.0,59558.0,5e-07]
[1723923615210,2.06122101,59559.0,59558.0,5e-07]
[1723923616259,2.04722101,59559.0,59558.0,5e-07]